bitfinex/quotes_SOLUSD_20250903
["timestamp","ask_amount","ask_price","bid_price","bid_amount"]
[1756888059807,0.78,210.14,210.11,0.03]
[1756888059808,0.06,210.14,210.11,0.03]
[1756888060014,0.72,210.13,210.11,0.03]
[1756888060230,0.72,210.12,210.11,0.03]
[1756888065836,5.47918522,210.12,210.11,0.03]
[1756888066039,8.33217972,210.12,210.11,0.03]
[1756888066239,5.47918522,210.12,210.11,0.03]
[1756888066429,0.72,210.12,210.11,0.03]
[1756888074352,0.78,210.12,210.11,0.03]
[1756888076560,5.53918522,210.12,210.11,0.03]
[1756888078440,0.78,210.12,210.11,0.03]
[1756888078643,0.06,210.12,210.11,0.03]
[1756888079754,0.06,210.12,210.11,4.48446481]
[1756888080056,0.06,210.12,210.11,5.18446481]
[1756888080660,0.06,210.12,210.11,5.46878795]
[1756888085963,0.06,210.12,210.11,10.22819968]
[1756888088164,0.06,210.12,210.11,0.31432314]
[1756888088464,5.22446481,210.12,210.11,0.03]
[1756888089659,0.77,210.12,210.11,0.03]
[1756888090244,5.22446481,210.12,210.11,0.03]
[1756888090663,9.98365003,210.12,210.11,0.03]
[1756888092684,0.77,210.12,210.11,0.03]
[1756888093151,37.91,210.12,210.11,0.03]
[1756888093967,0.73,210.12,210.11,0.03]
[1756888094168,0.06,210.12,210.11,0.03]
[1756888096681,0.06,210.12,210.11,0.72]
[1756888096885,0.06,210.12,210.11,5.17446481]
[1756888098378,0.06,210.12,210.11,9.93387654]
[1756888098585,0.06,210.12,210.11,9.24387654]
[1756888099071,0.73,210.12,210.11,0.03]
[1756888099853,0.06,210.12,210.11,0.03]
[1756888102069,0.06,210.12,210.11,5.17446481]
[1756888102377,0.06,210.12,210.11,4.48446481]
[1756888102579,0.06,210.14,210.13,39.59559401]
[1756888102782,0.06,210.14,210.13,45.02438196]
[1756888102972,0.06,210.14,210.13,33.33532021]
[1756888103768,0.06,210.14,210.13,36.86887874]
[1756888105577,0.06,210.14,210.13,41.62783747]
[1756888108862,0.06,210.15,210.14,18.33438196]
[1756888109079,0.06,210.15,210.14,23.03381371]
[1756888109385,0.06,210.15,210.14,22.55794049]
[1756888109978,0.06,210.15,210.14,22.86220795]
[1756888110292,0.06,210.15,210.14,27.30831134]
[1756888110662,0.06,210.16,210.15,18.33438196]
[1756888110878,0.06,210.16,210.15,59.70957907]
[1756888111373,0.06,210.16,210.15,3.52519711]
[1756888111557,0.06,210.16,210.15,7.97966192]
[1756888111988,0.06,210.16,210.15,13.02249088]
[1756888113784,0.73,210.16,210.15,8.26398506]
[1756888114364,0.73,210.16,210.15,3.52519711]
[1756888117966,0.73,210.16,210.14,3.52519711]
[1756888118164,0.67,210.15,210.13,0.28432314]
[1756888118371,0.06,210.16,210.14,3.52649392]
[1756888118573,0.06,210.16,210.13,9.49774089]
[1756888118774,0.06,210.16,210.14,3.5262686]
[1756888118973,0.67,210.15,210.13,9.49774089]
[1756888119172,0.06,210.16,210.14,3.52627096]
[1756888119487,0.06,210.16,210.13,4.73878795]
[1756888119488,0.06,210.16,210.15,3.52650828]
[1756888119688,0.06,210.16,210.14,3.52650828]
[1756888119983,0.67,210.15,210.11,0.03]
[1756888120186,0.67,210.15,210.12,3.5271845]
[1756888120486,0.67,210.14,210.13,3.5271845]
[1756888121558,0.06,210.16,210.13,12.74059226]
[1756888121757,0.06,210.16,210.15,4.45446481]
[1756888121955,0.06,210.16,210.15,3.5271845]
[1756888122156,0.06,210.16,210.15,7.98164931]
[1756888122889,0.06,210.16,210.15,7.98144012]
[1756888123585,0.06,210.16,210.15,3.52697531]
[1756888123791,0.06,210.16,210.15,12.73994594]
[1756888124873,0.06,210.16,210.15,8.28548113]
[1756888125188,0.06,210.16,210.15,3.52697531]
[1756888126093,0.06,210.16,210.15,8.28548113]
[1756888126263,0.06,210.16,210.15,12.73994594]
[1756888127190,0.06,210.16,210.15,12.76994594]
[1756888127884,0.78,210.16,210.15,8.31548113]
[1756888128088,0.06,210.16,210.15,12.76994594]
[1756888128269,0.06,210.16,210.15,13.43994594]
[1756888128866,0.06,210.16,210.15,12.76994594]
[1756888131493,0.06,210.16,210.15,11.16441607]
[1756888132383,0.78,210.16,210.15,3.55697531]
[1756888132589,3.62893494,210.16,210.15,3.55697531]
[1756888133098,3.62893494,210.16,210.15,0.03]
[1756888133276,0.78,210.16,210.15,0.03]
[1756888133879,0.06,210.16,210.15,3.55807042]
[1756888134193,0.78,210.16,210.15,3.55807042]
[1756888136192,0.78,210.16,210.15,11.16551118]
[1756888136193,0.06,210.16,210.15,11.16551118]
[1756888136492,0.06,210.16,210.15,3.55807042]
[1756888136493,0.78,210.16,210.15,3.55807042]
[1756888136705,0.06,210.16,210.15,3.55807042]
[1756888137579,0.06,210.16,210.15,8.31657624]
[1756888137773,0.06,210.16,210.15,11.16551118]
[1756888138994,0.78,210.16,210.15,3.55807042]
[1756888139995,0.78,210.16,210.15,3.56269849]
[1756888140482,0.06,210.16,210.15,6.41163343]
[1756888140683,0.06,210.16,210.15,11.17013925]
[1756888142685,0.06,210.16,210.15,11.84013925]
[1756888144217,0.06,210.16,210.15,12.12446239]
[1756888144581,0.06,210.16,210.15,14.03108552]
[1756888145909,0.06,210.17,210.16,0.28432314]
[1756888146108,0.06,210.17,210.16,7.33595657]
[1756888147403,0.06,210.17,210.16,12.09423597]
[1756888149294,0.06,210.17,210.16,25.69573089]
[1756888149489,0.06,210.18,210.16,12.57596482]
[1756888149691,0.06,210.18,210.17,7.34185748]
[1756888150289,0.06,210.18,210.17,11.15723522]
[1756888150488,0.06,210.18,210.17,14.00617016]
[1756888151303,0.06,210.19,210.18,0.28432314]
[1756888151512,0.06,210.19,210.18,4.49292254]
[1756888151692,0.06,210.19,210.18,7.34185748]
[1756888151888,0.06,210.19,210.18,44.46185748]
[1756888152203,0.06,210.19,210.18,46.36802632]
[1756888152904,0.06,210.19,210.18,51.12585294]
[1756888153718,0.78,210.19,210.18,10.486918]
[1756888154026,0.78,210.19,210.18,11.4296841]
[1756888154387,0.06,210.19,210.18,11.4296841]
[1756888156328,0.06,210.19,210.18,63.29106077]
[1756888156698,0.06,210.19,210.18,65.19704795]
[1756888157224,0.09996003,210.19,210.18,65.19704795]
[1756888157595,0.09996003,210.19,210.18,144.89704795]
[1756888157801,0.09996003,210.19,210.18,144.42126529]
[1756888159324,0.06,210.21,210.18,144.42126529]
[1756888159325,0.06,210.21,210.2,0.28432314]
[1756888159495,0.06,210.21,210.2,70.26759487]
[1756888159896,0.06,210.21,210.2,70.93759487]
[1756888160097,0.06,210.21,210.2,72.84330963]
[1756888160402,0.06,210.21,210.2,85.29316625]
[1756888160609,0.06,210.21,210.2,90.05054017]
[1756888162011,0.06,210.21,210.2,76.45494616]
[1756888163700,0.78,210.21,210.2,39.33494616]
[1756888164097,0.78,210.21,210.2,36.48601122]
[1756888164296,0.78,210.21,210.2,39.33494616]
[1756888164493,0.78,210.21,210.2,13.33494616]
[1756888168433,0.06,210.21,210.2,13.33494616]
[1756888170138,0.06,210.21,210.2,14.00494616]
[1756888172322,0.06,210.21,210.2,13.33494616]
[1756888172532,0.06,210.21,210.2,10.48601122]
[1756888172723,0.06,210.21,210.2,13.33494616]
[1756888175235,0.78,210.21,210.2,13.33494616]
[1756888176439,0.06,210.21,210.2,13.33494616]
[1756888178129,0.06,210.21,210.2,50.43494616]
[1756888180155,0.06,210.21,210.2,13.33494616]
[1756888187635,0.06,210.21,210.2,13.32747146]
[1756888189345,0.77,210.21,210.2,13.32747146]
[1756888189550,0.06,210.21,210.2,13.32747146]
[1756888190544,0.06,210.21,210.2,13.99747146]
[1756888191060,0.06,210.21,210.2,13.32981381]
[1756888191239,0.06,210.21,210.2,13.99981381]
[1756888191441,0.06,210.21,210.2,14.9287042]
[1756888193358,0.77,210.21,210.2,14.9287042]
[1756888193755,0.06,210.21,210.2,14.9287042]
[1756888194864,0.77,210.21,210.2,14.9287042]
[1756888195572,0.06,210.21,210.2,14.9287042]
[1756888198073,0.77,210.21,210.2,10.48087887]
[1756888198245,0.77,210.21,210.2,14.9287042]
[1756888200171,0.06,210.21,210.2,14.9287042]
[1756888200560,0.77,210.21,210.2,14.9287042]
[1756888201070,0.77,210.21,210.2,5.43918181]
[1756888201278,0.77,210.21,210.2,3.53346705]
[1756888201471,0.77,210.21,210.2,12.7386663]
[1756888203052,0.06,210.21,210.2,13.02298944]
[1756888203778,0.06,210.21,210.2,14.92915828]
[1756888204983,0.06,210.21,210.2,15.59915828]
[1756888205298,0.06,210.21,210.2,47.54133295]
[1756888205455,0.77,210.21,210.2,31.72395903]
[1756888205661,0.77,210.21,210.2,36.17178436]
[1756888206176,0.77,210.21,210.2,34.26561552]
[1756888206553,0.77,210.21,210.2,39.02298944]
[1756888206863,0.77,210.21,210.2,3.53346705]
[1756888207066,0.06,210.21,210.2,12.7386663]
[1756888207873,0.06,210.21,210.2,13.02298944]
[1756888208477,0.77,210.21,210.2,3.53346705]
[1756888208857,0.77,210.21,210.2,8.29084097]
[1756888210662,0.77,210.21,210.2,13.02298944]
[1756888211076,0.06,210.21,210.2,13.02298944]
[1756888211469,0.06,210.21,210.2,13.66376709]
[1756888211878,0.06,210.21,210.2,47.51192894]
[1756888212069,0.06,210.21,210.2,51.95975427]
[1756888212381,0.06,210.21,210.2,52.67975427]
[1756888215288,0.06,210.21,210.2,51.95975427]
[1756888215695,0.06,210.21,210.2,14.89975427]
[1756888215877,0.75,210.21,210.2,8.26161862]
[1756888216758,0.75,210.21,210.2,3.5042447]
[1756888223408,5.19782533,210.21,210.2,3.5042447]
[1756888224084,5.19782533,210.21,210.19,0.03]
[1756888224704,4.44782533,210.2,210.19,0.03]
[1756888224991,9.20519925,210.2,210.19,0.03]
[1756888225167,9.89519925,210.2,210.19,0.03]
[1756888226277,5.13782533,210.2,210.19,0.03]
[1756888226995,9.89519925,210.2,210.19,0.03]
[1756888227492,11.80227689,210.2,210.19,0.03]
[1756888227690,62.4378709,210.2,210.19,0.03]
[1756888229089,20.95004557,210.2,210.19,0.03]
[1756888229274,62.4378709,210.2,210.19,0.03]
[1756888231202,48.84227689,210.2,210.19,0.03]
[1756888231773,62.4378709,210.2,210.19,0.03]
[1756888233693,57.99004557,210.2,210.19,0.03]
[1756888234007,62.4378709,210.2,210.19,0.03]
[1756888234787,48.84227689,210.2,210.19,0.03]
[1756888235091,11.80227689,210.2,210.19,0.03]
[1756888235305,25.3978709,210.2,210.19,0.03]
[1756888235483,62.4378709,210.2,210.19,0.03]
[1756888240142,25.3978709,210.2,210.19,0.03]
[1756888240607,62.4378709,210.2,210.19,0.03]
[1756888243634,62.4178709,210.2,210.19,0.03]
[1756888248824,62.70219404,210.2,210.19,0.03]
[1756888250929,62.76219404,210.2,210.19,0.03]
[1756888253427,61.16573952,210.2,210.19,0.03]
[1756888253967,13.59559401,210.19,210.18,0.03]
[1756888254238,16.44696482,210.19,210.18,0.03]
[1756888254623,19.01458816,210.19,210.18,0.03]
[1756888255729,20.26081761,210.19,210.18,0.03]
[1756888256038,60.79218842,210.19,210.18,0.03]
[1756888259258,1.90762334,210.19,210.18,0.73]
[1756888259540,41.77899415,210.19,210.18,0.73]
[1756888259926,1.90762334,210.19,210.18,0.73]
[1756888260137,0.06,210.2,210.18,0.73]
[1756888260351,37.02,210.19,210.18,0.73]
[1756888261142,0.06,210.2,210.18,5.4878246]
[1756888261340,37.0,210.19,210.18,8.33919541]
[1756888262016,0.06,210.2,210.18,8.33919541]
[1756888262224,0.06,210.2,210.19,3.55137081]
[1756888262850,0.06,210.2,210.19,7.01816565]
[1756888263016,0.06,210.2,210.19,12.09031339]
[1756888263222,0.06,210.2,210.19,8.95461944]
[1756888263623,0.06,210.2,210.19,7.01816565]
[1756888264249,0.06,210.2,210.19,0.7]
[1756888264459,0.06,210.2,210.19,5.45760026]
[1756888264633,0.06,210.2,210.19,8.92225992]
[1756888265222,0.06,210.2,210.19,5.45760026]
[1756888265455,0.06,210.2,210.19,8.92210044]
[1756888265625,0.06,210.2,210.19,4.16450018]
[1756888265829,0.06,210.2,210.19,0.7]
[1756888266027,2.91137081,210.2,210.19,0.7]
[1756888266226,7.69944133,210.2,210.19,0.7]
[1756888266428,4.84807052,210.2,210.19,0.7]
[1756888266650,7.69944133,210.2,210.18,0.03]
[1756888266856,39.85137081,210.19,210.18,0.03]
[1756888268264,44.60897107,210.19,210.18,0.03]
[1756888268477,45.26897107,210.19,210.18,0.03]
[1756888268634,40.51137081,210.19,210.18,0.03]
[1756888268835,37.0,210.19,210.18,0.03]
[1756888269047,39.85137081,210.19,210.18,0.03]
[1756888270355,44.60897107,210.19,210.18,0.03]
[1756888270556,45.26897107,210.19,210.18,0.03]
[1756888270774,8.26897107,210.19,210.18,0.03]
[1756888270982,58.86456508,210.19,210.18,0.03]
[1756888271858,60.77182458,210.19,210.18,0.03]
[1756888272058,60.11182458,210.19,210.18,0.03]
[1756888272365,60.81182458,210.19,210.18,0.03]
[1756888272948,60.11182458,210.19,210.18,0.03]
[1756888273274,72.70582524,210.19,210.13,0.03]
[1756888273472,72.70582524,210.19,210.12,0.03]
[1756888273473,0.28432314,210.13,210.12,0.03]
[1756888273674,13.59559401,210.12,210.11,0.03]
[1756888273975,19.99833563,210.12,210.11,0.03]
[1756888274374,56.97833563,210.12,210.11,0.03]
[1756888274960,48.14192684,210.12,210.11,0.03]
[1756888275163,61.73752085,210.12,210.11,0.03]
[1756888275480,13.59559401,210.11,210.1,0.03]
[1756888275680,16.44696482,210.11,210.1,0.03]
[1756888275861,17.14696482,210.11,210.06,0.03]
[1756888276066,50.57559401,210.1,210.06,0.03]
[1756888276569,51.27559401,210.1,210.06,0.03]
[1756888276978,44.35531624,210.1,210.07,0.67]
[1756888277161,81.35531624,210.1,210.07,0.67]
[1756888278181,81.35531624,210.1,210.06,0.03]
[1756888278374,44.35531624,210.1,210.09,0.7]
[1756888278574,0.7,210.17,210.09,0.7]
[1756888278882,2.85137081,210.13,210.09,0.7]
[1756888279088,37.0,210.12,210.09,0.7]
[1756888279476,39.85137081,210.12,210.09,0.7]
[1756888279662,39.85137081,210.12,210.09,5.45985799]
[1756888279868,39.85137081,210.12,210.1,0.67]
[1756888280082,39.85137081,210.12,210.11,0.67]
[1756888280386,37.0,210.12,210.11,0.67]
[1756888282389,2.85137081,210.13,210.11,0.67]
[1756888282594,37.0,210.12,210.09,4.78985799]
[1756888282891,1.90753237,210.14,210.09,4.78985799]
[1756888283095,37.0,210.13,210.09,7.6412288]
[1756888283274,37.0,210.12,210.1,0.67]
[1756888283469,37.0,210.12,210.11,0.67]
[1756888285287,37.0,210.12,210.09,5.45985799]
[1756888285597,37.0,210.12,210.1,0.67]
[1756888285798,37.0,210.12,210.09,4.78985799]
[1756888286004,37.0,210.12,210.09,5.45985799]
[1756888286173,37.0,210.12,210.09,4.78985799]
[1756888286369,37.0,210.12,210.1,0.67]
[1756888286573,37.0,210.12,210.11,0.67]
[1756888286796,37.0,210.12,210.09,5.45985799]
[1756888286982,37.0,210.12,210.1,0.67]
[1756888287182,37.06,210.12,210.1,0.67]
[1756888287390,37.06,210.12,210.09,4.78985799]
[1756888287596,0.06,210.15,210.11,2.85137081]
[1756888287803,0.06,210.22,210.18,0.28432314]
[1756888287992,14.36649276,210.23,210.18,0.28432314]
[1756888287993,0.06,210.23,210.22,0.28432314]
[1756888288196,0.06,210.24,210.23,5.04101818]
[1756888288493,0.06,210.24,210.23,8.56238899]
[1756888291386,1e-08,210.24,210.23,11.4137598]
[1756888292891,1e-08,210.24,210.23,19.96787223]
[1756888293424,0.06,210.31,210.23,19.96787223]
[1756888293425,0.06,210.31,210.24,28.1367712]
[1756888293588,0.06,210.31,210.28,3.13569395]
[1756888293795,0.06,210.31,210.29,0.28432314]
[1756888294092,0.06,210.33,210.31,13.87991715]
[1756888294294,0.06,210.33,210.32,29.13569395]
[1756888294490,0.2,210.34,210.33,0.28432314]
[1756888294717,0.2,210.34,210.33,0.93432314]
[1756888294896,0.2,210.34,210.33,3.78569395]
[1756888295711,0.2,210.34,210.33,5.68875664]
[1756888295888,0.2,210.34,210.33,8.54012745]
[1756888298009,1e-08,210.34,210.33,22.13572146]
[1756888298408,1e-08,210.34,210.33,48.13572146]
[1756888302602,1e-08,210.34,210.33,34.54012745]
[1756888303031,1e-08,210.34,210.33,47.48572146]
[1756888303403,1e-08,210.34,210.33,127.18572146]
[1756888303726,1e-08,210.34,210.33,127.83572146]
[1756888306928,1e-08,210.34,210.33,101.83572146]
[1756888307225,1e-08,210.34,210.33,98.98435065]
[1756888307527,1e-08,210.34,210.33,103.74034732]
[1756888307736,0.71000001,210.34,210.33,1.90462586]
[1756888307913,3.56137082,210.34,210.23,4.78653585]
[1756888308109,2.85137081,210.3,210.23,4.78653585]
[1756888308304,0.71,210.29,210.24,2.85137081]
[1756888308626,0.71,210.29,210.23,4.78653585]
[1756888308627,0.71,210.28,210.25,2.85137081]
[1756888308797,0.71,210.27,210.25,2.85137081]
[1756888309002,0.71,210.26,210.25,3.13569395]
[1756888309199,0.71,210.26,210.24,7.60771157]
[1756888309403,0.71,210.26,210.25,0.28432314]
[1756888309599,0.71,210.26,210.24,7.60771157]
[1756888310220,0.71,210.28,210.25,0.28432314]
[1756888310413,0.71,210.27,210.25,0.28432314]
[1756888310812,0.71,210.26,210.25,0.28432314]
[1756888311327,0.71,210.26,210.25,7.89193651]
[1756888311512,0.71,210.29,210.25,7.89193651]
[1756888311823,0.71,210.28,210.25,7.89193651]
[1756888312332,2.85137081,210.31,210.25,7.89193651]
[1756888312333,0.71,210.27,210.25,7.89193651]
[1756888313207,0.71,210.27,210.25,5.0405657]
[1756888313408,0.71,210.26,210.25,5.0405657]
[1756888314117,0.71,210.29,210.25,5.0405657]
[1756888314304,0.71,210.28,210.25,9.48786502]
[1756888314526,0.71,210.27,210.25,9.48786502]
[1756888316916,0.71,210.26,210.25,5.0405657]
[1756888318732,0.71,210.28,210.25,5.0405657]
[1756888318940,0.71,210.26,210.25,5.0405657]
[1756888319842,0.71,210.26,210.23,0.03]
[1756888320131,0.71,210.29,210.25,4.44729932]
[1756888320333,0.71,210.31,210.28,4.44729932]
[1756888320538,0.71,210.31,210.29,4.44729932]
[1756888320925,0.71,210.3,210.28,4.44729932]
[1756888321220,0.71,210.29,210.28,4.44729932]
[1756888321423,4.44729933,210.34,210.28,4.44729932]
[1756888321424,0.71,210.3,210.28,4.44729932]
[1756888322018,0.71,210.3,210.26,0.28432314]
[1756888322019,0.71,210.3,210.29,9.20263718]
[1756888323035,4.44729933,210.34,210.29,4.44729932]
[1756888323221,0.71,210.3,210.29,4.44729932]
[1756888324217,0.71,210.3,210.29,4.75533786]
[1756888326332,4.44729933,210.34,210.29,4.75533786]
[1756888326333,4.44729933,210.34,210.29,9.20263718]
[1756888326536,0.71,210.33,210.29,9.20263718]
[1756888326838,0.71,210.32,210.29,9.20263718]
[1756888327934,1e-08,210.34,210.31,4.44729932]
[1756888328248,0.71,210.33,210.32,4.75465956]
[1756888329442,0.71,210.33,210.29,4.44729932]
[1756888329751,0.71,210.32,210.27,4.73162246]
[1756888329942,4.44729932,210.33,210.27,4.73162246]
[1756888329943,0.71,210.31,210.27,4.73162246]
[1756888330117,0.71,210.3,210.27,4.73162246]
[1756888330447,4.44729932,210.33,210.27,4.73162246]
[1756888330651,0.71,210.3,210.27,4.73162246]
[1756888330955,4.44729932,210.33,210.27,4.73162246]
[1756888331140,0.71,210.29,210.27,4.73162246]
[1756888331623,1e-08,210.34,210.26,4.44729932]
[1756888331624,0.69,210.28,210.26,4.44729932]
[1756888332132,5.13729932,210.27,210.25,0.03]
[1756888332335,0.69,210.27,210.25,0.03]
[1756888332644,4.44729932,210.26,210.25,0.03]
[1756888333020,5.13729932,210.26,210.25,0.03]
[1756888338562,9.89331568,210.26,210.25,0.03]
[1756888339157,23.48890969,210.26,210.25,0.03]
[1756888340041,60.54890969,210.26,210.25,0.03]
[1756888341862,60.54890969,210.26,210.23,0.03]
[1756888341863,39.59559401,210.24,210.23,0.03]
[1756888342029,48.49019265,210.24,210.23,0.03]
[1756888342225,49.18019265,210.24,210.23,0.03]
[1756888343744,53.93666144,210.24,210.23,0.03]
[1756888345654,40.28559401,210.24,210.23,0.03]
[1756888345840,45.0420628,210.24,210.23,0.03]
[1756888346035,72.91376811,210.24,210.23,0.03]
[1756888347055,86.50936212,210.24,210.23,0.03]
[1756888347354,90.95666144,210.24,210.23,0.03]
[1756888348163,18.04289333,210.23,210.22,0.03]
[1756888348371,39.59559401,210.21,210.2,0.03]
[1756888348605,81.06289333,210.21,210.2,0.03]
[1756888348885,81.75289333,210.21,210.2,0.03]
[1756888349168,86.51004094,210.21,210.2,0.03]
[1756888349737,0.69,210.23,210.2,0.03]
[1756888349963,4.44729932,210.21,210.2,0.03]
[1756888350560,5.13729932,210.21,210.2,0.03]
[1756888351259,9.89444693,210.21,210.2,0.03]
[1756888351657,4.44729932,210.21,210.2,0.03]
[1756888352373,41.50729932,210.21,210.2,0.03]
[1756888353278,5.13729932,210.21,210.2,0.03]
[1756888353468,41.50729932,210.21,210.2,0.03]
[1756888353979,4.44729932,210.21,210.2,0.03]
[1756888354185,41.48729932,210.21,210.2,0.03]
[1756888354572,37.04,210.21,210.2,0.03]
[1756888354781,41.48729932,210.21,210.2,0.03]
[1756888356163,23.32194408,210.35,210.2,0.03]
[1756888356164,0.69,210.28,210.2,0.68]
[1756888356369,37.04,210.25,210.2,0.68]
[1756888356683,37.06,210.24,210.21,0.65]
[1756888358690,37.06,210.24,210.21,5.40709635]
[1756888359069,41.50729932,210.24,210.21,5.40709635]
[1756888359394,41.50729932,210.24,210.2,0.03]
[1756888359395,4.44729932,210.23,210.2,0.03]
[1756888359692,37.06,210.22,210.2,0.03]
[1756888363892,37.06,210.22,210.2,0.68]
[1756888364787,37.06,210.22,210.2,0.03]
[1756888364973,41.50729932,210.22,210.2,0.03]
[1756888365176,0.67,210.21,210.2,0.03]
[1756888365687,37.02,210.21,210.2,0.03]
[1756888365989,37.69,210.21,210.2,0.03]
[1756888366999,0.67,210.21,210.2,0.03]
[1756888367207,37.69,210.21,210.2,0.03]
[1756888367497,37.02,210.21,210.2,0.03]
[1756888368074,37.69,210.21,210.2,0.03]
[1756888368585,42.13729932,210.21,210.2,0.03]
[1756888369390,37.69,210.21,210.2,0.03]
[1756888370101,42.13729932,210.21,210.2,0.03]
[1756888371113,42.11729932,210.21,210.2,0.03]
[1756888372191,60.47004094,210.21,210.2,0.03]
[1756888373198,5.11729932,210.21,210.2,0.03]
[1756888373395,42.11729932,210.21,210.2,0.03]
[1756888375486,40.51921231,210.21,210.2,0.03]
[1756888376198,2.84921231,210.21,210.2,0.03]
[1756888376408,2.90921231,210.25,210.2,0.68]
[1756888376584,37.0,210.24,210.21,3.49921231]
[1756888376781,37.0,210.24,210.21,2.84921231]
[1756888376996,37.0,210.24,210.21,3.49921231]
[1756888377309,0.06,210.25,210.21,5.4070385]
[1756888377489,37.0,210.24,210.21,5.4070385]
[1756888377999,0.06,210.25,210.21,5.4070385]
[1756888378189,37.0,210.23,210.21,5.4070385]
[1756888379086,37.0,210.23,210.2,0.03]
[1756888379285,37.0,210.23,210.2,0.68]
[1756888379606,37.0,210.23,210.2,0.03]
[1756888380801,37.0,210.23,210.2,4.78737392]
[1756888381212,0.67,210.22,210.2,0.03]
[1756888381381,3.51921231,210.22,210.2,0.03]
[1756888381781,3.51921231,210.21,210.2,0.03]
[1756888382879,47.87195393,210.21,210.2,0.03]
[1756888383805,80.11480632,210.21,210.2,0.03]
[1756888384485,66.51921231,210.21,210.2,0.03]
[1756888385206,29.51921231,210.21,210.2,0.03]
[1756888385404,66.51921231,210.21,210.2,0.03]
[1756888386789,29.51921231,210.21,210.2,0.03]
[1756888387104,66.51921231,210.21,210.2,0.03]
[1756888387303,3.51921231,210.21,210.2,0.03]
[1756888387604,40.51921231,210.21,210.2,0.03]
[1756888389182,37.67,210.21,210.2,0.03]
[1756888389382,40.51921231,210.21,210.2,0.03]
[1756888389809,39.84921231,210.21,210.2,0.03]
[1756888393308,44.60635992,210.21,210.2,0.03]
[1756888393810,58.20195393,210.21,210.2,0.03]
[1756888394187,60.10930439,210.21,210.2,0.03]
[1756888400502,13.59559401,210.2,210.18,0.03]
[1756888400707,65.84921231,210.19,210.18,0.03]
[1756888401426,13.59559401,210.18,210.17,0.03]
[1756888401635,16.44480632,210.18,210.17,0.03]
[1756888401832,18.35242966,210.18,210.17,0.03]
[1756888402215,39.59559401,210.16,210.15,0.03]
[1756888402436,79.44480632,210.16,210.15,0.03]
[1756888403028,84.20308572,210.16,210.15,0.03]
[1756888403419,83.26176971,210.16,210.15,0.03]
[1756888403606,84.20308572,210.16,210.15,0.03]
[1756888406220,86.11089103,210.16,210.15,0.03]
[1756888414126,78.50339932,210.16,210.15,0.03]
[1756888414317,38.90780531,210.16,210.15,0.03]
[1756888414515,1.90780531,210.16,210.15,0.03]
[1756888414915,38.90780531,210.16,210.15,0.03]
[1756888415114,37.0,210.16,210.15,0.03]
[1756888418437,39.84921231,210.16,210.15,0.03]
[1756888422743,58.20308572,210.16,210.15,0.03]
[1756888423540,84.20308572,210.16,210.15,0.03]
[1756888424817,42.44480632,210.16,210.15,0.03]
[1756888425033,39.84921231,210.16,210.15,0.03]
[1756888426415,2.84921231,210.17,210.15,0.03]
[1756888426727,37.0,210.16,210.15,0.03]
[1756888428645,39.84921231,210.16,210.15,0.03]
[1756888429447,0.06,210.17,210.15,0.03]
[1756888429629,0.06,210.17,210.16,2.84921231]
[1756888429945,0.06,210.17,210.16,7.89181485]
[1756888431826,0.06,210.2,210.16,19.78751336]
[1756888432049,0.06,210.2,210.16,16.93830105]